[Event "*** Titled Tuesday Blitz"]
[Site "Chess.com"]
[Date "2020.12.01"]
[Round "6"]
[White "Roza_Idrisova"]
[Black "SlovenskiZmaj"]
[Result "0-1"]
[WhiteElo "2184"]
[BlackElo "2450"]
[TimeControl "180+1"]
[EndTime "11:04:14 PST"]
[Termination "SlovenskiZmaj won by resignation"]

1. d4 {[%clk 0:03:00.9]} 1... Nf6 {[%clk 0:02:58.7]} 2. Nf3 {[%clk 0:03:00.3]}
2... e6 {[%clk 0:02:50.6]} 3. Bg5 {[%clk 0:02:59.3]} 3... d5 {[%clk 0:02:49.3]}
4. e3 {[%clk 0:02:58.4]} 4... c5 {[%clk 0:02:48.5]} 5. c3 {[%clk 0:02:58.5]}
5... Nc6 {[%clk 0:02:48.5]} 6. Nbd2 {[%clk 0:02:58.3]} 6... Qc7 {[%clk 0:02:37]}
7. Bd3 {[%clk 0:02:52.6]} 7... b6 {[%clk 0:02:37]} 8. O-O {[%clk 0:02:51.6]}
8... Be7 {[%clk 0:02:37.7]} 9. Qe2 {[%clk 0:02:48.4]} 9... O-O {[%clk
0:02:36.6]} 10. dxc5 {[%clk 0:02:48.5]} 10... bxc5 {[%clk 0:02:35.5]} 11. e4
{[%clk 0:02:48.7]} 11... h6 {[%clk 0:02:33.7]} 12. exd5 {[%clk 0:02:44.2]} 12...
exd5 {[%clk 0:02:27.9]} 13. Bh4 {[%clk 0:02:40.8]} 13... Be6 {[%clk 0:02:20.6]}
14. Bg3 {[%clk 0:02:40.1]} 14... Bd6 {[%clk 0:02:20.8]} 15. Bxd6 {[%clk
0:02:39.1]} 15... Qxd6 {[%clk 0:02:21.7]} 16. Rfe1 {[%clk 0:02:39.2]} 16... Rab8
{[%clk 0:02:20.6]} 17. b3 {[%clk 0:02:37.5]} 17... Rfd8 {[%clk 0:02:19.5]} 18.
Ne5 {[%clk 0:02:34]} 18... Nxe5 {[%clk 0:02:06.9]} 19. Qxe5 {[%clk 0:02:33.3]}
19... Qxe5 {[%clk 0:02:07.8]} 20. Rxe5 {[%clk 0:02:32.7]} 20... a5 {[%clk
0:02:05.3]} 21. Nf3 {[%clk 0:02:31.5]} 21... Nd7 {[%clk 0:01:58.4]} 22. Ree1
{[%clk 0:02:30.5]} 22... Nb6 {[%clk 0:01:59]} 23. h3 {[%clk 0:02:29.7]} 23... a4
{[%clk 0:01:54.6]} 24. Ne5 {[%clk 0:02:27.3]} 24... Rbc8 {[%clk 0:01:44.5]} 25.
Ba6 {[%clk 0:02:26]} 25... Rc7 {[%clk 0:01:44.5]} 26. Bb5 {[%clk 0:02:23.5]}
26... Ra8 {[%clk 0:01:40.8]} 27. b4 {[%clk 0:02:17.7]} 27... d4 {[%clk
0:01:04.4]} 28. cxd4 {[%clk 0:02:10.9]} 28... cxb4 {[%clk 0:01:01]} 29. Bc6
{[%clk 0:01:55.9]} 29... Rd8 {[%clk 0:00:55.2]} 30. Rad1 {[%clk 0:01:51.5]}
30... Bxa2 {[%clk 0:00:44.1]} 31. d5 {[%clk 0:01:47]} 31... Bxd5 {[%clk
0:00:31.2]} 32. Bxd5 {[%clk 0:01:41.2]} 32... Rxd5 {[%clk 0:00:32.1]} 33. Rxd5
{[%clk 0:01:31.7]} 33... Nxd5 {[%clk 0:00:33]} 34. Nd3 {[%clk 0:01:26.5]} 34...
Rc3 {[%clk 0:00:27.3]} 35. Re8+ {[%clk 0:01:25.3]} 35... Kh7 {[%clk 0:00:27]}
36. Ne1 {[%clk 0:01:15.7]} 36... b3 {[%clk 0:00:20.4]} 37. Rb8 {[%clk
0:01:14.7]} 37... a3 {[%clk 0:00:19.8]} 38. Kf1 {[%clk 0:01:14.6]} 38... a2
{[%clk 0:00:19.9]} 39. Ra8 {[%clk 0:01:14.4]} 39... Rc1 {[%clk 0:00:19.7]} 40.
Ke2 {[%clk 0:01:10.8]} 40... Rxe1+ {[%clk 0:00:19.9]} 41. Kxe1 {[%clk
0:01:10.1]} 41... b2 {[%clk 0:00:20.8]} 0-1

[Event "*** Titled Tuesday Blitz"]
[Site "Chess.com"]
[Date "2020.12.01"]
[Round "6"]
[White "MoreChessJulia"]
[Black "HrvojeZagreb"]
[Result "1-0"]
[WhiteElo "2115"]
[BlackElo "2231"]
[TimeControl "180+1"]
[EndTime "11:04:18 PST"]
[Termination "MoreChessJulia won by resignation"]

1. d4 {[%clk 0:03:00.8]} 1... e6 {[%clk 0:02:59.6]} 2. c4 {[%clk 0:03:00.4]}
2... f5 {[%clk 0:02:59.8]} 3. g3 {[%clk 0:02:59.9]} 3... Nf6 {[%clk 0:02:59.8]}
4. Bg2 {[%clk 0:03:00.3]} 4... Be7 {[%clk 0:03:00.2]} 5. Nf3 {[%clk 0:03:00.8]}
5... O-O {[%clk 0:03:00.6]} 6. O-O {[%clk 0:03:01.3]} 6... d6 {[%clk 0:03:00.5]}
7. b3 {[%clk 0:03:01.5]} 7... Ne4 {[%clk 0:03:00.1]} 8. Bb2 {[%clk 0:03:01.4]}
8... Bf6 {[%clk 0:02:59.9]} 9. Nbd2 {[%clk 0:03:01.1]} 9... Nxd2 {[%clk
0:02:59.8]} 10. Qxd2 {[%clk 0:03:01.2]} 10... Qe8 {[%clk 0:02:58.5]} 11. Rae1
{[%clk 0:03:00.6]} 11... e5 {[%clk 0:02:54.7]} 12. d5 {[%clk 0:03:00.5]} 12...
a5 {[%clk 0:02:48.5]} 13. h3 {[%clk 0:02:54.2]} 13... Qh5 {[%clk 0:02:44.6]} 14.
Kh2 {[%clk 0:02:53.5]} 14... Nd7 {[%clk 0:02:35.9]} 15. e4 {[%clk 0:02:49.4]}
15... fxe4 {[%clk 0:02:33.8]} 16. Rxe4 {[%clk 0:02:48.4]} 16... Nc5 {[%clk
0:02:32.9]} 17. Re3 {[%clk 0:02:40.6]} 17... Bg5 {[%clk 0:02:13.1]} 18. Nxg5
{[%clk 0:02:39.5]} 18... Qxg5 {[%clk 0:02:14]} 19. Bc1 {[%clk 0:02:30.6]} 19...
Bd7 {[%clk 0:01:59.1]} 20. Rf3 {[%clk 0:02:09.3]} 20... Rxf3 {[%clk 0:01:56.5]}
21. Qxg5 {[%clk 0:02:07.8]} 21... Rf7 {[%clk 0:01:54]} 22. Be3 {[%clk
0:01:57.7]} 22... h6 {[%clk 0:01:44]} 23. Qh5 {[%clk 0:01:56.7]} 23... Nd3
{[%clk 0:01:28.3]} 24. Be4 {[%clk 0:01:44.7]} 24... Be8 {[%clk 0:01:24]} 25. Qe2
{[%clk 0:01:39.3]} 25... Nb4 {[%clk 0:01:21.2]} 26. a3 {[%clk 0:01:36.8]} 26...
Na6 {[%clk 0:01:21.2]} 27. Bg6 {[%clk 0:01:35.7]} 27... Rf6 {[%clk 0:01:20.1]}
28. Bxe8 {[%clk 0:01:34.5]} 28... Rxe8 {[%clk 0:01:21]} 29. Bd2 {[%clk
0:01:28.3]} 29... b6 {[%clk 0:01:19.8]} 30. b4 {[%clk 0:01:24.8]} 30... axb4
{[%clk 0:01:19.1]} 31. axb4 {[%clk 0:01:24]} 31... Ref8 {[%clk 0:01:18.5]} 32.
f4 {[%clk 0:01:22.5]} 32... g5 {[%clk 0:01:12.2]} 33. f5 {[%clk 0:01:18.7]}
33... Rxf5 {[%clk 0:01:10.8]} 34. Rxf5 {[%clk 0:01:18.5]} 34... Rxf5 {[%clk
0:01:11.7]} 35. c5 {[%clk 0:01:16.6]} 35... Nb8 {[%clk 0:01:02.8]} 36. Kg2
{[%clk 0:01:03.6]} 36... bxc5 {[%clk 0:01:00.3]} 37. Qb5 {[%clk 0:00:59.3]}
37... Rf8 {[%clk 0:00:58.1]} 38. bxc5 {[%clk 0:00:58]} 38... Kg7 {[%clk
0:00:53.6]} 39. c6 {[%clk 0:00:55.8]} 39... Re8 {[%clk 0:00:46.7]} 40. Qb7
{[%clk 0:00:54.4]} 40... Kg8 {[%clk 0:00:40.4]} 41. Qxc7 {[%clk 0:00:53.4]}
41... Na6 {[%clk 0:00:40]} 42. Qxd6 {[%clk 0:00:52.1]} 42... Kh7 {[%clk
0:00:35.2]} 43. Qd7+ {[%clk 0:00:50.4]} 43... Kg8 {[%clk 0:00:34.7]} 1-0

[Event "*** Titled Tuesday Blitz"]
[Site "Chess.com"]
[Date "2020.12.01"]
[Round "6"]
[White "Hikaru"]
[Black "vanea_03"]
[Result "1-0"]
[WhiteElo "3185"]
[BlackElo "2730"]
[TimeControl "180+1"]
[EndTime "11:04:20 PST"]
[Termination "Hikaru won by resignation"]

1. Nf3 {[%clk 0:03:00.9]} 1... d5 {[%clk 0:02:58.9]} 2. e3 {[%clk 0:03:00.3]}
2... Nf6 {[%clk 0:02:58.7]} 3. b3 {[%clk 0:03:00.6]} 3... e6 {[%clk 0:02:57]} 4.
Bb2 {[%clk 0:03:00.7]} 4... Bd6 {[%clk 0:02:57.5]} 5. c4 {[%clk 0:03:00.8]} 5...
b6 {[%clk 0:02:57.2]} 6. Nc3 {[%clk 0:02:58.3]} 6... Bb7 {[%clk 0:02:55.1]} 7.
Qc2 {[%clk 0:02:58.6]} 7... a6 {[%clk 0:02:53.3]} 8. cxd5 {[%clk 0:02:58.3]}
8... exd5 {[%clk 0:02:53]} 9. d4 {[%clk 0:02:58]} 9... O-O {[%clk 0:02:47.4]}
10. Bd3 {[%clk 0:02:58.1]} 10... Re8 {[%clk 0:02:45.8]} 11. Ne5 {[%clk 0:02:58]}
11... Nbd7 {[%clk 0:02:43.2]} 12. f4 {[%clk 0:02:58.1]} 12... c5 {[%clk
0:02:38.3]} 13. Bf5 {[%clk 0:02:58.3]} 13... cxd4 {[%clk 0:02:24.3]} 14. exd4
{[%clk 0:02:59.2]} 14... Nf8 {[%clk 0:02:22]} 15. O-O {[%clk 0:02:58.5]} 15...
Ne6 {[%clk 0:02:18.6]} 16. Rad1 {[%clk 0:02:58]} 16... Rc8 {[%clk 0:02:12.4]}
17. Qb1 {[%clk 0:02:49.2]} 17... Bb4 {[%clk 0:01:51.5]} 18. Ne2 {[%clk
0:02:45.7]} 18... a5 {[%clk 0:01:24.4]} 19. a3 {[%clk 0:02:43.1]} 19... Bf8
{[%clk 0:01:21.5]} 20. Ng3 {[%clk 0:02:41]} 20... Ba6 {[%clk 0:01:17.7]} 21.
Rfe1 {[%clk 0:02:36]} 21... Rc7 {[%clk 0:01:13.8]} 22. Bc1 {[%clk 0:02:30.3]}
22... g6 {[%clk 0:00:42.3]} 23. Bxe6 {[%clk 0:02:28.4]} 23... Rxe6 {[%clk
0:00:43.2]} 24. f5 {[%clk 0:02:28.1]} 24... Re8 {[%clk 0:00:43.8]} 25. Bg5
{[%clk 0:02:25.2]} 25... Qd6 {[%clk 0:00:39.9]} 26. fxg6 {[%clk 0:01:58.8]}
26... hxg6 {[%clk 0:00:38.7]} 27. Nxg6 {[%clk 0:01:59.7]} 27... Rxe1+ {[%clk
0:00:38.2]} 28. Rxe1 {[%clk 0:02:00.1]} 28... fxg6 {[%clk 0:00:28.4]} 29. Qxg6+
{[%clk 0:02:01]} 29... Rg7 {[%clk 0:00:28.8]} 30. Qxf6 {[%clk 0:02:01.2]} 30...
Qxf6 {[%clk 0:00:29.5]} 31. Bxf6 {[%clk 0:02:01.9]} 31... Rf7 {[%clk 0:00:30.2]}
32. Re6 {[%clk 0:01:59.7]} 32... Bxa3 {[%clk 0:00:25.2]} 33. Rxb6 {[%clk
0:01:59.4]} 33... Bd3 {[%clk 0:00:25.8]} 34. h4 {[%clk 0:01:56.3]} 34... Bb4
{[%clk 0:00:20.8]} 35. Be5 {[%clk 0:01:52.1]} 35... Bc2 {[%clk 0:00:18.5]} 36.
Nh5 {[%clk 0:01:50.6]} 36... Kh7 {[%clk 0:00:15.8]} 37. Nf6+ {[%clk 0:01:48.9]}
37... Kg6 {[%clk 0:00:12.9]} 38. Nxd5+ {[%clk 0:01:48.9]} 38... Kh5 {[%clk
0:00:13.6]} 39. Nxb4 {[%clk 0:01:48.2]} 39... axb4 {[%clk 0:00:14.5]} 40. Rxb4
{[%clk 0:01:48.5]} 40... Kxh4 {[%clk 0:00:12.9]} 41. Rb8 {[%clk 0:01:47.8]}
41... Bd3 {[%clk 0:00:11.2]} 42. b4 {[%clk 0:01:48]} 42... Rf1+ {[%clk
0:00:11.1]} 43. Kh2 {[%clk 0:01:48.6]} 43... Rb1 {[%clk 0:00:11.8]} 44. d5
{[%clk 0:01:39.4]} 44... Be4 {[%clk 0:00:12.4]} 45. d6 {[%clk 0:01:39.7]} 45...
Rd1 {[%clk 0:00:13]} 46. Rf8 {[%clk 0:01:37.5]} 46... Kg5 {[%clk 0:00:12.4]} 47.
b5 {[%clk 0:01:37.1]} 47... Kg6 {[%clk 0:00:09.4]} 48. b6 {[%clk 0:01:36.7]}
48... Rd2 {[%clk 0:00:09.9]} 49. Rf6+ {[%clk 0:01:33.6]} 49... Kh7 {[%clk
0:00:08]} 50. Kg3 {[%clk 0:01:30.8]} 50... Bxg2 {[%clk 0:00:07.1]} 51. Rf2
{[%clk 0:01:28.6]} 1-0

[Event "*** Titled Tuesday Blitz"]
[Site "Chess.com"]
[Date "2020.12.01"]
[Round "6"]
[White "sergeikim"]
[Black "picturesquecheck"]
[Result "1-0"]
[WhiteElo "2527"]
[BlackElo "2168"]
[TimeControl "180+1"]
[EndTime "11:04:21 PST"]
[Termination "sergeikim won by resignation"]

1. d4 {[%clk 0:03:00.9]} 1... Nf6 {[%clk 0:02:57.3]} 2. c4 {[%clk 0:03:00.7]}
2... e6 {[%clk 0:02:57.3]} 3. Nc3 {[%clk 0:03:00.6]} 3... d5 {[%clk 0:02:57.8]}
4. Nf3 {[%clk 0:02:59.8]} 4... dxc4 {[%clk 0:02:57.2]} 5. e3 {[%clk 0:02:59.3]}
5... a6 {[%clk 0:02:57.3]} 6. a4 {[%clk 0:02:57]} 6... c5 {[%clk 0:02:57]} 7.
Bxc4 {[%clk 0:02:56.4]} 7... Nc6 {[%clk 0:02:56]} 8. O-O {[%clk 0:02:56.1]} 8...
Be7 {[%clk 0:02:56.5]} 9. Qe2 {[%clk 0:02:56.1]} 9... O-O {[%clk 0:02:55.7]} 10.
Rd1 {[%clk 0:02:56.4]} 10... cxd4 {[%clk 0:02:55.1]} 11. exd4 {[%clk 0:02:56.3]}
11... Nd5 {[%clk 0:02:48.5]} 12. Ne5 {[%clk 0:02:51.3]} 12... Bf6 {[%clk
0:02:46.1]} 13. Rd3 {[%clk 0:02:45]} 13... Nxc3 {[%clk 0:02:27.8]} 14. bxc3
{[%clk 0:02:44.3]} 14... Qc7 {[%clk 0:02:27.6]} 15. Ng4 {[%clk 0:02:24.5]} 15...
Be7 {[%clk 0:02:20.3]} 16. Rg3 {[%clk 0:02:19.6]} 16... Kh8 {[%clk 0:02:15.3]}
17. Bd3 {[%clk 0:02:07.7]} 17... Bd7 {[%clk 0:01:58]} 18. Rh3 {[%clk 0:01:54]}
18... f5 {[%clk 0:01:57.4]} 19. Ne3 {[%clk 0:01:38.4]} 19... Bf6 {[%clk
0:01:47.6]} 20. Qh5 {[%clk 0:01:35.4]} 20... h6 {[%clk 0:01:43.4]} 21. Ba3
{[%clk 0:01:30.4]} 21... Ne7 {[%clk 0:01:22.6]} 22. Rc1 {[%clk 0:01:02.3]} 22...
Be8 {[%clk 0:01:22.2]} 23. Qe2 {[%clk 0:00:58.9]} 23... Bxa4 {[%clk 0:01:19.2]}
24. Nc4 {[%clk 0:00:58.1]} 24... Bb5 {[%clk 0:01:13.7]} 25. Qxe6 {[%clk
0:00:55.3]} 25... Rae8 {[%clk 0:01:07.3]} 26. Nd6 {[%clk 0:00:53.8]} 26... Bxd3
{[%clk 0:01:03.5]} 27. Nxe8 {[%clk 0:00:48.8]} 27... Qf4 {[%clk 0:00:33.6]} 28.
Nxf6 {[%clk 0:00:39.2]} 28... Rxf6 {[%clk 0:00:24.8]} 29. Qxe7 {[%clk
0:00:37.9]} 29... Be4 {[%clk 0:00:23.1]} 30. Rg3 {[%clk 0:00:35.7]} 1-0

[Event "*** Titled Tuesday Blitz"]
[Site "Chess.com"]
[Date "2020.12.01"]
[Round "6"]
[White "azikom"]
[Black "Infernal_XaM"]
[Result "1/2-1/2"]
[WhiteElo "2634"]
[BlackElo "2829"]
[TimeControl "180+1"]
[EndTime "11:04:22 PST"]
[Termination "Game drawn by repetition"]

1. d4 {[%clk 0:03:00.5]} 1... Nf6 {[%clk 0:02:57.1]} 2. Nf3 {[%clk 0:03:01]}
2... c5 {[%clk 0:02:56.9]} 3. e3 {[%clk 0:02:59.5]} 3... g6 {[%clk 0:02:55.3]}
4. dxc5 {[%clk 0:02:59.1]} 4... Bg7 {[%clk 0:02:54]} 5. Nbd2 {[%clk 0:02:59]}
5... Qa5 {[%clk 0:02:53.3]} 6. a3 {[%clk 0:02:58.7]} 6... Qxc5 {[%clk
0:02:53.3]} 7. b4 {[%clk 0:02:59.1]} 7... Qc7 {[%clk 0:02:53.7]} 8. Bb2 {[%clk
0:02:59.1]} 8... O-O {[%clk 0:02:53.3]} 9. c4 {[%clk 0:02:59.7]} 9... d6 {[%clk
0:02:53.6]} 10. Be2 {[%clk 0:03:00.2]} 10... Nbd7 {[%clk 0:02:53]} 11. O-O
{[%clk 0:03:00.5]} 11... b6 {[%clk 0:02:53.3]} 12. h3 {[%clk 0:03:00.7]} 12...
Bb7 {[%clk 0:02:53.4]} 13. Qb3 {[%clk 0:03:01.3]} 13... Rac8 {[%clk 0:02:46.9]}
14. Rfc1 {[%clk 0:03:00.7]} 14... Qb8 {[%clk 0:02:46.6]} 15. Bf1 {[%clk
0:02:54.3]} 15... Rfd8 {[%clk 0:02:45.5]} 16. Nd4 {[%clk 0:02:49.5]} 16... e5
{[%clk 0:02:44.1]} 17. Nb5 {[%clk 0:02:42.1]} 17... a6 {[%clk 0:02:43.7]} 18.
Nc3 {[%clk 0:02:41.9]} 18... Nf8 {[%clk 0:02:42.3]} 19. a4 {[%clk 0:02:41.1]}
19... Ne6 {[%clk 0:02:36.4]} 20. a5 {[%clk 0:02:40.6]} 20... bxa5 {[%clk
0:02:33.2]} 21. Rxa5 {[%clk 0:02:40.1]} 21... h5 {[%clk 0:02:31.7]} 22. Rca1
{[%clk 0:02:38.5]} 22... g5 {[%clk 0:02:14.5]} 23. Nd5 {[%clk 0:02:34.4]} 23...
Nxd5 {[%clk 0:02:14]} 24. cxd5 {[%clk 0:02:34.2]} 24... Nc7 {[%clk 0:02:14.9]}
25. e4 {[%clk 0:02:27.9]} 25... Rf8 {[%clk 0:02:07.8]} 26. Nc4 {[%clk
0:02:22.3]} 26... Rcd8 {[%clk 0:02:07.5]} 27. Qg3 {[%clk 0:02:13.5]} 27... f6
{[%clk 0:02:01.1]} 28. Qf3 {[%clk 0:02:04.9]} 28... h4 {[%clk 0:01:52.6]} 29.
Ne3 {[%clk 0:01:57.4]} 29... Bc8 {[%clk 0:01:52.3]} 30. Bc3 {[%clk 0:01:52.9]}
30... Nb5 {[%clk 0:01:51.3]} 31. Bxb5 {[%clk 0:01:50.7]} 31... axb5 {[%clk
0:01:51.4]} 32. Nf5 {[%clk 0:01:51]} 32... Bxf5 {[%clk 0:01:51.4]} 33. Qxf5
{[%clk 0:01:51.1]} 33... Qc8 {[%clk 0:01:51.5]} 34. Bd2 {[%clk 0:01:29.9]} 34...
Qxf5 {[%clk 0:01:50.1]} 35. exf5 {[%clk 0:01:28.8]} 35... Rb8 {[%clk 0:01:50.1]}
36. Be3 {[%clk 0:01:24.2]} 36... Rf7 {[%clk 0:01:50.3]} 37. Ra6 {[%clk
0:01:23.6]} 37... Bf8 {[%clk 0:01:49.7]} 38. Rc6 {[%clk 0:01:20.2]} 38... Rfb7
{[%clk 0:01:47.8]} 39. Raa6 {[%clk 0:01:13.3]} 39... Kf7 {[%clk 0:01:47.7]} 40.
Kf1 {[%clk 0:01:12.7]} 40... Ke8 {[%clk 0:01:47.8]} 41. Ke2 {[%clk 0:01:12.3]}
41... Kd7 {[%clk 0:01:48.1]} 42. Kf3 {[%clk 0:01:12.6]} 42... Rc7 {[%clk
0:01:41.9]} 43. Kg4 {[%clk 0:01:11.8]} 43... Rxc6 {[%clk 0:01:41.1]} 44. Rxc6
{[%clk 0:01:07.6]} 44... Be7 {[%clk 0:01:37.7]} 45. Rb6 {[%clk 0:01:04.5]} 45...
Rc8 {[%clk 0:01:22.2]} 46. Rxb5 {[%clk 0:01:02.9]} 46... Rc3 {[%clk 0:01:13.9]}
47. Kh5 {[%clk 0:01:01.2]} 47... Rd3 {[%clk 0:01:13.9]} 48. Kg6 {[%clk
0:01:00.6]} 48... Bd8 {[%clk 0:01:14.2]} 49. Kf7 {[%clk 0:00:57.6]} 49... Rd1
{[%clk 0:01:10.8]} 50. Rb7+ {[%clk 0:00:56.6]} 50... Kc8 {[%clk 0:01:10.3]} 51.
Rb5 {[%clk 0:00:56.1]} 51... Kd7 {[%clk 0:01:10.3]} 52. Kg6 {[%clk 0:00:47.4]}
52... Rd3 {[%clk 0:01:07.9]} 53. Kf7 {[%clk 0:00:46.6]} 53... Rd1 {[%clk
0:01:07.3]} 1/2-1/2

[Event "*** Titled Tuesday Blitz"]
[Site "Chess.com"]
[Date "2020.12.01"]
[Round "6"]
[White "Tsyhanchuk_Stanislav"]
[Black "Triumphmate"]
[Result "0-1"]
[WhiteElo "2231"]
[BlackElo "2401"]
[TimeControl "180+1"]
[EndTime "11:04:28 PST"]
[Termination "Triumphmate won on time"]

1. d4 {[%clk 0:03:00.6]} 1... d5 {[%clk 0:03:00.9]} 2. Nf3 {[%clk 0:03:00.1]}
2... e6 {[%clk 0:03:01.5]} 3. c4 {[%clk 0:02:59.5]} 3... Be7 {[%clk 0:03:02]} 4.
g3 {[%clk 0:02:59.9]} 4... Nf6 {[%clk 0:03:02.4]} 5. Bg2 {[%clk 0:03:00.2]} 5...
O-O {[%clk 0:03:03]} 6. O-O {[%clk 0:02:59.7]} 6... dxc4 {[%clk 0:03:03.6]} 7.
Qa4 {[%clk 0:02:59]} 7... c5 {[%clk 0:03:03.9]} 8. Qxc4 {[%clk 0:02:58.8]} 8...
Nc6 {[%clk 0:03:04.4]} 9. dxc5 {[%clk 0:02:53.2]} 9... e5 {[%clk 0:03:04.4]} 10.
Nc3 {[%clk 0:02:49.4]} 10... Be6 {[%clk 0:03:04.6]} 11. Qb5 {[%clk 0:02:44.1]}
11... Qc7 {[%clk 0:03:04.8]} 12. Bg5 {[%clk 0:02:24.9]} 12... a6 {[%clk
0:03:04.8]} 13. Qb6 {[%clk 0:02:22.3]} 13... Qc8 {[%clk 0:03:04.9]} 14. Nxe5
{[%clk 0:01:21.8]} 14... Nxe5 {[%clk 0:02:51.9]} 15. Bxb7 {[%clk 0:01:17.6]}
15... Qxc5 {[%clk 0:02:47.9]} 16. Qxc5 {[%clk 0:01:15]} 16... Bxc5 {[%clk
0:02:48.8]} 17. Bxa8 {[%clk 0:01:13.6]} 17... Rxa8 {[%clk 0:02:49.7]} 18. Bxf6
{[%clk 0:01:13.4]} 18... gxf6 {[%clk 0:02:50.6]} 19. Rfd1 {[%clk 0:01:08]} 19...
Rb8 {[%clk 0:02:49.3]} 20. b3 {[%clk 0:01:04.9]} 20... Ng4 {[%clk 0:02:43]} 21.
e3 {[%clk 0:01:03.6]} 21... f5 {[%clk 0:02:39.6]} 22. Na4 {[%clk 0:00:53.4]}
22... Bb4 {[%clk 0:02:34.2]} 23. Rac1 {[%clk 0:00:48.9]} 23... Ne5 {[%clk
0:02:32.5]} 24. Nb2 {[%clk 0:00:43.4]} 24... Ba3 {[%clk 0:02:28.6]} 25. Rc2
{[%clk 0:00:37.4]} 25... a5 {[%clk 0:02:24.7]} 26. Nc4 {[%clk 0:00:25.8]} 26...
Nxc4 {[%clk 0:02:12.8]} 27. bxc4 {[%clk 0:00:26.7]} 27... Rc8 {[%clk 0:02:11.5]}
28. Rd3 {[%clk 0:00:24.5]} 28... Bb4 {[%clk 0:02:07.2]} 29. Rd4 {[%clk
0:00:15.1]} 29... Kg7 {[%clk 0:02:04.1]} 30. Kg2 {[%clk 0:00:14.3]} 30... Kf6
{[%clk 0:02:03.8]} 31. Kf3 {[%clk 0:00:14]} 31... Rc5 {[%clk 0:02:00.3]} 32. h4
{[%clk 0:00:11.6]} 32... h5 {[%clk 0:01:59.9]} 33. Kf4 {[%clk 0:00:10.1]} 33...
Rc6 {[%clk 0:01:58.6]} 34. Kf3 {[%clk 0:00:08.7]} 34... Bc8 {[%clk 0:01:57.2]}
35. Ke2 {[%clk 0:00:08.9]} 35... Ba6 {[%clk 0:01:56.9]} 36. Kd3 {[%clk
0:00:09.5]} 36... Bd6 {[%clk 0:01:55.9]} 37. Rd5 {[%clk 0:00:08.8]} 37... Bb4
{[%clk 0:01:52.7]} 38. Kd4 {[%clk 0:00:07.4]} 38... Ke6 {[%clk 0:01:51.5]} 39.
Re5+ {[%clk 0:00:07.1]} 39... Kf6 {[%clk 0:01:51]} 40. Rd5 {[%clk 0:00:07.3]}
40... Bc8 {[%clk 0:01:48.5]} 41. Kd3 {[%clk 0:00:02.8]} 41... Be6 {[%clk
0:01:48.5]} 42. Rd4 {[%clk 0:00:02.7]} 42... Bc5 {[%clk 0:01:47.5]} 43. Rd8
{[%clk 0:00:03]} 43... Bb6 {[%clk 0:01:44.3]} 44. Rh8 {[%clk 0:00:03.3]} 44...
Rd6+ {[%clk 0:01:44.4]} 45. Ke2 {[%clk 0:00:02.1]} 45... Kg6 {[%clk 0:01:41]}
46. c5 {[%clk 0:00:02.4]} 46... Rc6 {[%clk 0:01:40.7]} 47. Rb8 {[%clk
0:00:01.2]} 47... Bxc5 {[%clk 0:01:39.9]} 48. Rxc5 {[%clk 0:00:01.5]} 48... Rxc5
{[%clk 0:01:39.8]} 49. Rb6 {[%clk 0:00:02.4]} 49... Rc2+ {[%clk 0:01:38.3]} 0-1

[Event "*** Titled Tuesday Blitz"]
[Site "Chess.com"]
[Date "2020.12.01"]
[Round "6"]
[White "annacramling"]
[Black "Nils_03"]
[Result "0-1"]
[WhiteElo "2115"]
[BlackElo "2265"]
[TimeControl "180+1"]
[EndTime "11:04:30 PST"]
[Termination "Nils_03 won on time"]

1. d4 {[%clk 0:03:00.9]} 1... d5 {[%clk 0:02:59.6]} 2. c4 {[%clk 0:03:01.4]}
2... e6 {[%clk 0:02:59.5]} 3. Nc3 {[%clk 0:02:57.7]} 3... c6 {[%clk 0:02:59.8]}
4. e3 {[%clk 0:02:52.6]} 4... Nf6 {[%clk 0:02:58.8]} 5. Nf3 {[%clk 0:02:51.2]}
5... Nbd7 {[%clk 0:02:58]} 6. Be2 {[%clk 0:02:49.5]} 6... dxc4 {[%clk
0:02:57.6]} 7. Bxc4 {[%clk 0:02:49]} 7... b5 {[%clk 0:02:57.8]} 8. Bd3 {[%clk
0:02:49.5]} 8... Bb7 {[%clk 0:02:58.4]} 9. e4 {[%clk 0:02:49.3]} 9... a6 {[%clk
0:02:51.8]} 10. e5 {[%clk 0:02:48.5]} 10... Nd5 {[%clk 0:02:51.6]} 11. Ng5
{[%clk 0:02:45.9]} 11... Be7 {[%clk 0:02:43.6]} 12. Nce4 {[%clk 0:02:05.7]}
12... h6 {[%clk 0:02:22.9]} 13. Qh5 {[%clk 0:01:21.3]} 13... g6 {[%clk
0:01:48.6]} 14. Nd6+ {[%clk 0:01:08.3]} 14... Bxd6 {[%clk 0:01:41.3]} 15. Bxg6
{[%clk 0:01:02.8]} 15... Bb4+ {[%clk 0:01:36.2]} 16. Kf1 {[%clk 0:01:02.5]}
16... Qe7 {[%clk 0:00:59.9]} 17. Nxf7 {[%clk 0:00:43.2]} 17... Rf8 {[%clk
0:00:46.1]} 18. Nd6+ {[%clk 0:00:36.2]} 18... Kd8 {[%clk 0:00:46.4]} 19. Nxb7+
{[%clk 0:00:36]} 19... Kc7 {[%clk 0:00:46.9]} 20. Nd6 {[%clk 0:00:31.7]} 20...
Bxd6 {[%clk 0:00:44.6]} 21. exd6+ {[%clk 0:00:32.6]} 21... Qxd6 {[%clk
0:00:44.8]} 22. Bxh6 {[%clk 0:00:26.6]} 22... Rf6 {[%clk 0:00:42.3]} 23. Bg7
{[%clk 0:00:23]} 23... Nf4 {[%clk 0:00:39.2]} 24. Qg4 {[%clk 0:00:02.8]} 24...
Rxg6 {[%clk 0:00:37.3]} 25. Qf3 {[%clk 0:00:02]} 25... Rxg7 {[%clk 0:00:36.3]}
26. Rc1 {[%clk 0:00:01.2]} 26... Nd5 {[%clk 0:00:32.9]} 0-1